fUSD/lending_fUSD_20250610
["ID","MTS","AMOUNT","RATE_DAILY","PERIOD"]
[365261646,1749568250382,-151.0,0.00017095,2]
[365261648,1749568250392,-171.315411,0.00017095,2]
[365261650,1749568250401,-171.315411,0.00017095,2]
[365261652,1749568250411,-151.0,0.00017095,2]
[365261654,1749568250420,-151.0,0.00017095,2]
[365261656,1749568250429,-151.0,0.00017095,2]
[365261658,1749568250439,-151.0,0.00017095,2]
[365261660,1749568250448,-278.606212,0.00017095,2]
[365261662,1749568250457,-532.008873,0.00017095,2]
[365261664,1749568250470,-532.008873,0.00017095,2]
[365261666,1749568250480,-388.714748,0.00017095,2]
[365261668,1749568250489,-388.714748,0.00017095,2]
[365261670,1749568250498,-151.0,0.00017095,2]
[365261672,1749568250508,-401.88123,0.00017095,2]
[365261674,1749568250518,-401.88123,0.00017095,2]
[365261676,1749568250527,-490.0,0.00017095,2]
[365261678,1749568250536,-462.79498813,0.00017095,2]
[365261680,1749568250546,-409.68,0.00017095,2]
[365261682,1749568250555,-409.68,0.00017095,2]
[365261684,1749568250565,-490.0,0.00017095,2]
[365261686,1749568250574,-151.0,0.00017095,2]
[365261688,1749568250583,-490.0,0.00017095,2]
[365261690,1749568250594,-490.0,0.00017095,2]
[365261692,1749568250604,-490.0,0.00017095,2]
[365261694,1749568250613,-490.0,0.00017095,2]
[365261696,1749568250623,-247.26,0.00017095,2]
[365261698,1749568250632,-151.0,0.00017095,2]
[365261700,1749568250641,-500.81,0.00017095,2]
[365261702,1749568250650,-490.0,0.00017095,2]
[365261704,1749568250659,-151.0,0.00017095,2]
[365261706,1749568250669,-9032.725904,0.00017095,2]
[365261708,1749568250682,-151.0,0.00017095,2]
[365261710,1749568250691,-9032.725904,0.00017095,2]
[365261712,1749568250700,-151.0,0.00017095,2]
[365261714,1749568250709,-151.0,0.00017095,2]
[365261716,1749568250721,-151.0,0.00017095,2]
[365261718,1749568250730,-490.0,0.00017095,2]
[365261720,1749568250739,-192.062464,0.00017095,2]
[365261722,1749568250750,-490.0,0.00017095,2]
[365261724,1749568250760,-317.11451461,0.00017095,2]
[365261726,1749568250770,-151.0,0.00017095,2]
[365261728,1749568250779,-151.36172,0.00017095,2]
[365261730,1749568250788,-151.0,0.00017095,2]
[365261732,1749568250797,-490.0,0.00017095,2]
[365261734,1749568250806,-151.0,0.00017095,2]
[365261736,1749568250816,-151.0,0.00017095,2]
[365261738,1749568250826,-490.0,0.00017095,2]
[365261740,1749568250835,-490.0,0.00017095,2]
[365261742,1749568250844,-151.0,0.00017095,2]
[365261744,1749568250853,-151.0,0.00017095,2]
[365261746,1749568250862,-490.0,0.00017095,2]
[365261748,1749568250872,-151.0,0.00017095,2]
[365261750,1749568250881,-190.369157,0.00017095,2]
[365261752,1749568250890,-190.369157,0.00017095,2]
[365261754,1749568250899,-490.0,0.00017095,2]
[365261756,1749568250909,-490.0,0.00017095,2]
[365261758,1749568250918,-151.0,0.00017095,2]
[365261760,1749568250927,-490.0,0.00017095,2]
[365261762,1749568250937,-151.0,0.00017095,2]
[365261764,1749568250946,-490.0,0.00017095,2]
[365261766,1749568250956,-495.54006182,0.00017095,2]
[365261768,1749568250967,-508.72,0.00017095,2]
[365261770,1749568250976,-490.0,0.00017095,2]
[365261772,1749568250985,-490.0,0.00017095,2]
[365261774,1749568250994,-490.0,0.00017095,2]
[365261776,1749568251003,-490.0,0.00017095,2]
[365261778,1749568251012,-701.67,0.00017095,2]
[365261780,1749568251021,-3546.92,0.00017095,2]
[365261782,1749568251031,-151.0,0.00017095,2]
[365261784,1749568251040,-151.0,0.00017095,2]
[365261786,1749568251050,-151.0,0.00017095,2]
[365261788,1749568251059,-490.0,0.00017095,2]
[365261790,1749568251068,-490.0,0.00017095,2]
[365261792,1749568251078,-578.26,0.00017095,2]
[365261794,1749568251087,-887.9,0.00017095,2]
[365261796,1749568251097,-490.0,0.00017095,2]
[365261798,1749568251107,-490.0,0.00017095,2]
[365261801,1749568251116,-490.0,0.00017095,2]
[365261803,1749568251127,-151.0,0.00017095,2]
[365261805,1749568251136,-490.0,0.00017095,2]
[365261807,1749568251146,-490.0,0.00017095,2]
[365261809,1749568251155,-490.0,0.00017095,2]
[365261811,1749568251164,-490.0,0.00017095,2]
[365261813,1749568251174,-490.0,0.00017095,2]
[365261815,1749568251183,-301.004698,0.00017095,2]
[365261817,1749568251192,-909.36,0.00017095,2]
[365261819,1749568251202,-490.0,0.00017095,2]
[365261821,1749568251212,-301.004698,0.00017095,2]
[365261823,1749568251222,-490.0,0.00017095,2]
[365261825,1749568251232,-490.0,0.00017095,2]
[365261827,1749568251241,-490.0,0.00017095,2]
[365261829,1749568251251,-490.0,0.00017095,2]
[365261831,1749568251260,-490.0,0.00017095,2]
[365261833,1749568251270,-1489.29,0.00017095,2]
[365261835,1749568251279,-490.0,0.00017095,2]
[365261837,1749568251288,-490.0,0.00017095,2]
[365261838,1749568251298,-490.0,0.00017095,2]
[365261841,1749568251308,-818.53,0.00017095,2]
[365261843,1749568251317,-490.0,0.00017095,2]
[365261845,1749568251327,-1389.28,0.00017095,2]
[365261847,1749568251336,-534.54,0.00017095,2]
[365261849,1749568251346,-572.89,0.00017095,2]
[365261851,1749568251356,-151.0,0.00017095,2]
[365261853,1749568251365,-1696.43,0.00017095,2]
[365261855,1749568251375,-639.25,0.00017095,2]
[365261857,1749568251384,-664.17,0.00017095,2]
[365261859,1749568251395,-2191.22,0.00017095,2]
[365261861,1749568251404,-522.02,0.00017095,2]
[365261863,1749568251414,-490.0,0.00017095,2]
[365261865,1749568251423,-821.68,0.00017095,2]
[365261867,1749568251432,-868.8,0.00017095,2]
[365261869,1749568251441,-2729.4,0.00017095,2]
[365261871,1749568251451,-490.0,0.00017095,2]
[365261873,1749568251460,-490.0,0.00017095,2]
[365261875,1749568251471,-490.0,0.00017095,2]
[365261877,1749568251481,-817.82,0.00017095,2]
[365261879,1749568251490,-604.3,0.00017095,2]
[365261881,1749568251501,-490.0,0.00017095,2]
[365261883,1749568251511,-687.55,0.00017095,2]
[365261885,1749568251520,-490.0,0.00017095,2]
[365261887,1749568251530,-490.0,0.00017095,2]
[365261889,1749568251539,-490.0,0.00017095,2]
[365261891,1749568251549,-592.49,0.00017095,2]
[365261893,1749568251558,-490.0,0.00017095,2]
[365261895,1749568251567,-490.0,0.00017095,2]
[365261897,1749568251576,-490.0,0.00017095,2]
[365261899,1749568251586,-314.8,0.00017095,2]
[365261901,1749568251595,-686.39,0.00017095,2]
[365261903,1749568251604,-490.0,0.00017095,2]
[365261905,1749568251613,-673.97,0.00017095,2]
[365261907,1749568251623,-201.85,0.00017095,2]
[365261909,1749568251632,-490.0,0.00017095,2]
[365261911,1749568251641,-839.82,0.00017095,2]
[365261913,1749568251651,-490.0,0.00017095,2]
[365261914,1749568251660,-496.17,0.00017095,2]
[365261915,1749568251670,-589.72,0.00017095,2]
[365261916,1749568251682,-487.95,0.00017095,2]
[365261917,1749568251691,-490.0,0.00017095,2]
[365261918,1749568251700,-490.0,0.00017095,2]
[365261919,1749568251709,-3184.3,0.00017095,2]
[365261920,1749568251722,-490.0,0.00017095,2]
[365261921,1749568251731,-18445.38,0.00017095,2]
[365261924,1749568251786,-302.15935811,0.00017095,2]
[365261926,1749568251795,-490.0,0.00017095,2]
[365261928,1749568251804,-1470.56,0.00017095,2]
[365261930,1749568251813,-490.0,0.00017095,2]
[365261932,1749568251823,-530.49,0.00017095,2]
[365261934,1749568251832,-557.46,0.00017095,2]
[365261936,1749568251841,-490.0,0.00017095,2]
[365261938,1749568251850,-589.33,0.00017095,2]
[365261939,1749568251860,-822.5,0.00017095,2]
[365261941,1749568251869,-490.0,0.00017095,2]
[365261943,1749568251879,-490.0,0.00017095,2]
[365261946,1749568251889,-490.0,0.00017095,2]
[365261947,1749568251898,-404.92,0.00017095,2]
[365261950,1749568251907,-490.0,0.00017095,2]
[365261952,1749568251917,-264.0,0.00017106,4]
[365261953,1749568251927,-708.16079647,0.00017122,2]
[365261956,1749568251936,-2919.75940895,0.00017122,2]
[365261958,1749568251946,-162.0,0.00017123,2]
[365261960,1749568251955,-500.0,0.00017123,2]
[365261962,1749568251967,-7848.93556055,0.0001716,3]
[365261991,1749568252241,-11496.50409869,0.0001716,3]
[365262027,1749568252573,-359.10610983,0.00016601,2]
[365262029,1749568252583,-202.19426764,0.00016601,2]
[365262031,1749568252592,-202.16396978,0.00016601,2]
[365262033,1749568252601,-182.42830017,0.00016601,2]
[365262035,1749568252610,-2586.84120314,0.0001688,2]
[365262037,1749568252620,-2185.26594944,0.0001716,3]
[365262042,1749568252660,-4540.0,0.0001716,3]
[365262069,1749568252916,-1099.88375005,0.00016338,2]
[365262072,1749568252928,-1765.36262785,0.00016338,2]
[365262074,1749568252937,-228.007739,0.0001705,2]
[365262076,1749568252947,-671.3980301,0.0001716,3]
[365262079,1749568252966,-250.15086217,0.0001716,3]
[365262081,1749568252977,-3704.16079219,0.0001716,3]
[365262083,1749568252986,-595.5532353,0.0001716,3]
[365262085,1749568252997,-1394.79900001,0.0001716,3]
[365262087,1749568253008,-21765.71688377,0.0001716,3]
[365262090,1749568253026,-1124.53920301,0.0001716,3]
[365262127,1749568301819,264.0,0.000153,2]
[365262128,1749568391203,817.39,0.00019205,30]
[365262130,1749568483312,150.0,0.00015999,7]
[365262131,1749568604074,1000.0,0.0001598,2]
[365262132,1749568606681,1131.06,0.0001598,2]
[365262133,1749568622696,5000.0,0.00015972,2]
[365262134,1749568634189,278.05609054,0.00015941,2]
[365262135,1749568665980,263.94293665,0.00015861,2]
[365262136,1749568717018,652.76,0.00015447,2]
[365262137,1749568766782,958.72,0.00014054,2]
[365262138,1749568797349,1333.0,0.00024107,120]
[365262139,1749568806401,1000.0,0.00015865,2]
[365262140,1749568861302,264.0,0.0002465,120]
[365262142,1749568914114,10366.35162992,0.00015791,2]
[365262143,1749568914139,13533.64837008,0.00015791,2]
[365262144,1749568931843,251.0,0.00015557,2]
[365262145,1749568934341,-187.4966131,0.00016006,2]
[365262146,1749568937109,-63.5033869,0.00016006,2]
[365262147,1749568986312,1000.0,0.00014757,2]
[365262148,1749569053739,1611.73,0.00015972,2]
[365262149,1749569079076,250.0,0.00015697,2]
[365262150,1749569090993,156.42,0.00015697,2]
[365262157,1749569132453,330.25,0.00013699,2]
[365262158,1749569171904,506.0,0.00015557,2]
[365262159,1749569224265,1300.00876262,0.00024658,120]
[365262162,1749569301524,251.0,0.00015455,2]
[365262163,1749569301814,251.0,0.00015905,2]
[365262165,1749569317251,5336.15142992,0.000151,2]
[365262166,1749569317277,10338.92857008,0.000151,2]
[365262168,1749569355134,50000.0,0.0002,30]
[365262180,1749569427555,715.21,0.00019205,30]
[365262187,1749569432007,-387.26100793,0.00016164,2]
[365262188,1749569432018,-500.0,0.00016164,2]
[365262189,1749569432030,-500.0,0.00016164,2]
[365262190,1749569432041,-300.0,0.00016168,2]
[365262191,1749569432052,-600.0,0.00016173,4]
[365262192,1749569432067,-300.0,0.00016199,2]
[365262193,1749569432078,-250.0,0.00016232,2]
[365262194,1749569432089,-121.70865381,0.00016318,2]
[365262195,1749569432130,-837.01134619,0.00016318,2]
[365262196,1749569432141,-251.0,0.00016355,3]
[365262197,1749569432152,-1200.0,0.00016398,2]
[365262198,1749569432165,-2263.58865391,0.00016399,2]
[365262199,1749569432180,-1259.95,0.00016399,2]
[365262201,1749569432283,-2230.07812604,0.00016399,2]
[365262203,1749569432297,-534.07026749,0.00016399,2]
[365262205,1749569432310,-253.39681435,0.00016399,2]
[365262207,1749569432324,-1058.44493665,0.00016399,2]
[365262210,1749569432337,-870.04,0.00016399,2]
[365262212,1749569432351,-4329.74273714,0.00016399,2]
[365262215,1749569432364,-300.0,0.00016437,2]
[365262217,1749569432375,-249.0,0.00016437,2]
[365262219,1749569432385,-324.06580179,0.00016438,2]
[365262220,1749569432399,-165.93419821,0.00016438,2]
[365262221,1749569432410,-490.0,0.00016438,2]
[365262222,1749569432421,-67.51421586,0.00016438,2]
[365262223,1749569432433,-422.48578414,0.00016438,2]
[365262224,1749569432444,-561.4,0.00016438,2]
[365262225,1749569432455,-487.95,0.00016438,2]
[365262254,1749569432818,-445.32432506,0.00016438,2]
[365262284,1749569433107,-44.67567494,0.00016438,2]
[365262286,1749569433120,-490.0,0.00016438,2]
[365262288,1749569433130,-490.0,0.00016438,2]
[365262290,1749569433141,-493.33,0.00016438,2]
[365262292,1749569433151,-490.0,0.00016438,2]
[365262294,1749569433161,-490.0,0.00016438,2]
[365262296,1749569433171,-490.0,0.00016438,2]
[365262299,1749569433182,-490.0,0.00016438,2]
[365262301,1749569433192,-490.0,0.00016438,2]
[365262303,1749569433202,-490.0,0.00016438,2]
[365262305,1749569433211,-490.0,0.00016438,2]
[365262306,1749569433221,-247.26,0.00016438,2]
[365262309,1749569433234,-490.0,0.00016438,2]
[365262310,1749569433244,-500.81,0.00016438,2]
[365262313,1749569433255,-293.54618276,0.00016438,2]
[365262314,1749569433265,-490.0,0.00016438,2]
[365262317,1749569433275,-490.0,0.00016438,2]
[365262318,1749569433285,-490.0,0.00016438,2]
[365262320,1749569433295,-317.11451461,0.00016438,2]
[365262323,1749569433305,-490.0,0.00016438,2]
[365262324,1749569433314,-490.0,0.00016438,2]
[365262326,1749569433324,-490.0,0.00016438,2]
[365262328,1749569433333,-490.0,0.00016438,2]
[365262330,1749569433342,-490.0,0.00016438,2]
[365262333,1749569433353,-490.0,0.00016438,2]
[365262335,1749569433363,-490.0,0.00016438,2]
[365262336,1749569433373,-471.06611964,0.00016438,2]
[365262924,1749569439634,-490.0,0.00016438,2]
[365262926,1749569439644,-490.0,0.00016438,2]
[365262928,1749569439653,-559.2301514,0.00016438,2]
[365262931,1749569439665,-2596.1308,0.00016438,2]
[365262933,1749569439677,-818.06681035,0.00016438,2]
[365262946,1749569439799,-435.67355843,0.00016438,2]
[365262948,1749569439819,-10962.04867982,0.00016438,2]
[365262950,1749569439830,-480.0,0.00016438,2]
[365262952,1749569439839,-490.0,0.00016438,2]
[365262954,1749569439850,-490.0,0.00016438,2]
[365262956,1749569439860,-495.54006182,0.00016438,2]
[365262958,1749569439870,-490.0,0.00016438,2]
[365262960,1749569439880,-480.0,0.00016438,2]
[365262962,1749569439890,-490.0,0.00016438,2]
[365262964,1749569439900,-584.73,0.00016438,2]
[365262966,1749569439910,-460.0,0.00016438,2]
[365262968,1749569439920,-490.0,0.00016438,2]
[365262970,1749569439929,-490.0,0.00016438,2]
[365262972,1749569439939,-460.0,0.00016438,2]
[365262974,1749569439948,-480.0,0.00016438,2]
[365262976,1749569439958,-404.92,0.00016438,2]
[365262978,1749569439967,-508.72,0.00016438,2]
[365262980,1749569439977,-490.0,0.00016438,2]
[365262983,1749569439989,-490.0,0.00016438,2]
[365262985,1749569439998,-490.0,0.00016438,2]
[365262986,1749569440007,-490.0,0.00016438,2]
[365262988,1749569440018,-548.0,0.00016438,2]
[365262990,1749569440027,-2955.77,0.00016438,2]
[365262992,1749569440037,-776.91,0.00016438,2]
[365262994,1749569440046,-490.0,0.00016438,2]
[365262996,1749569440056,-490.0,0.00016438,2]
[365262998,1749569440065,-505.97,0.00016438,2]
[365263000,1749569440075,-480.0,0.00016438,2]
[365263002,1749569440085,-490.0,0.00016438,2]
[365263004,1749569440094,-490.0,0.00016438,2]
[365263007,1749569440105,-490.0,0.00016438,2]
[365263009,1749569440115,-490.0,0.00016438,2]
[365263012,1749569440124,-490.0,0.00016438,2]
[365263014,1749569440133,-490.0,0.00016438,2]
[365263016,1749569440142,-490.0,0.00016438,2]
[365263019,1749569440152,-490.0,0.00016438,2]
[365263022,1749569440161,-150.0,0.00016438,2]
[365263024,1749569440170,-490.0,0.00016438,2]
[365263026,1749569440180,-150.0,0.00016438,2]
[365263028,1749569440189,-490.0,0.00016438,2]
[365263031,1749569440199,-490.0,0.00016438,2]
[365263033,1749569440208,-490.0,0.00016438,2]
[365263035,1749569440217,-490.0,0.00016438,2]
[365263037,1749569440227,-795.69,0.00016438,2]
[365263039,1749569440238,-490.0,0.00016438,2]
[365263041,1749569440247,-490.0,0.00016438,2]
[365263043,1749569440257,-490.0,0.00016438,2]
[365263044,1749569440266,-490.0,0.00016438,2]
[365263046,1749569440276,-490.0,0.00016438,2]
[365263049,1749569440285,-490.0,0.00016438,2]
[365263051,1749569440295,-490.0,0.00016438,2]
[365263052,1749569440304,-490.0,0.00016438,2]
[365263054,1749569440313,-490.0,0.00016438,2]
[365263057,1749569440323,-490.0,0.00016438,2]
[365263058,1749569440333,-1303.13,0.00016438,2]
[365263061,1749569440343,-1484.38,0.00016438,2]
[365263063,1749569440352,-490.0,0.00016438,2]
[365263065,1749569440361,-716.21,0.00016438,2]
[365263067,1749569440371,-553.48,0.00016438,2]
[365263069,1749569440380,-1826.02,0.00016438,2]
[365263070,1749569440390,-684.73,0.00016438,2]
[365263072,1749569440400,-490.0,0.00016438,2]
[365263074,1749569440409,-534.54,0.00016438,2]
[365263076,1749569440419,-490.0,0.00016438,2]
[365263079,1749569440428,-490.0,0.00016438,2]
[365263081,1749569440438,-760.2,0.00016438,2]
[365263083,1749569440447,-490.0,0.00016438,2]
[365263084,1749569440456,-639.25,0.00016438,2]
[365263087,1749569440466,-2970.93,0.00016438,2]
[365263088,1749569440475,-490.0,0.00016438,2]
[365263091,1749569440485,-490.0,0.00016438,2]
[365263092,1749569440495,-490.0,0.00016438,2]
[365263094,1749569440504,-490.0,0.00016438,2]
[365263096,1749569440513,-490.0,0.00016438,2]
[365263099,1749569440522,-285.3424388,0.00016438,2]
[365263100,1749569440531,-493.74,0.00016438,2]
[365263103,1749569440541,-572.96,0.00016438,2]
[365263105,1749569440550,-490.0,0.00016438,2]
[365263107,1749569440560,-490.0,0.00016438,2]
[365263109,1749569440569,-490.0,0.00016438,2]
[365263111,1749569440579,-490.0,0.00016438,2]
[365263113,1749569440588,-490.0,0.00016438,2]
[365263114,1749569440598,-600.59,0.00016438,2]
[365263116,1749569440607,-490.0,0.00016438,2]
[365263118,1749569440616,-490.0,0.00016438,2]
[365263121,1749569440626,-730.91,0.00016438,2]
[365263123,1749569440635,-734.85,0.00016438,2]
[365263125,1749569440645,-490.0,0.00016438,2]
[365263127,1749569440654,-491.44,0.00016438,2]
[365263128,1749569440664,-490.0,0.00016438,2]
[365263131,1749569440674,-490.0,0.00016438,2]
[365263132,1749569440683,-490.0,0.00016438,2]
[365263134,1749569440692,-490.0,0.00016438,2]
[365263136,1749569440702,-1286.74,0.00016438,2]
[365263138,1749569440712,-490.0,0.00016438,2]
[365263141,1749569440722,-490.0,0.00016438,2]
[365263142,1749569440733,-244.78,0.00016438,2]
[365263145,1749569440742,-490.0,0.00016438,2]
[365263147,1749569440753,-515.66,0.00016438,2]
[365263148,1749569440762,-2786.26,0.00016438,2]
[365263150,1749569440772,-719.69,0.00016438,2]
[365263153,1749569440782,-490.0,0.00016438,2]
[365263155,1749569440796,-490.0,0.00016438,2]
[365263157,1749569440806,-490.0,0.00016438,2]
[365263159,1749569440816,-490.0,0.00016438,2]
[365263161,1749569440827,-490.0,0.00016438,2]
[365263163,1749569440838,-2795.16996403,0.00016502,2]
[365263165,1749569440848,-151.0,0.00016517,2]
[365263167,1749569440858,-1000.0,0.00016517,2]
[365263169,1749569440868,-1957.856,0.00016517,2]
[365263171,1749569440878,-1500.0,0.00016517,2]
[365263173,1749569440888,-1500.0,0.00016517,2]
[365263175,1749569440898,-1500.0,0.00016517,2]
[365263177,1749569440908,-597.60974713,0.00016517,2]
[365263179,1749569440918,-784.07129256,0.00016517,2]
[365263181,1749569440928,-500.0,0.00016517,2]
[365263183,1749569440937,-500.0,0.00016517,2]
[365263185,1749569440948,-500.0,0.00016517,2]
[365263187,1749569440958,-151.0,0.00016517,2]
[365263189,1749569440968,-500.0,0.00016517,2]
[365263191,1749569440978,-310.41814798,0.00016517,2]
[365263193,1749569440989,-151.0,0.00016517,2]
[365263195,1749569440999,-500.0,0.00016517,2]
[365263197,1749569441009,-500.0,0.00016517,2]
[365263199,1749569441019,-500.0,0.00016517,2]
[365263202,1749569441028,-500.0,0.00016517,2]
[365263204,1749569441038,-500.0,0.00016517,2]
[365263206,1749569441048,-500.0,0.00016517,2]
[365263208,1749569441059,-263.0832451,0.00016517,2]
[365263210,1749569441074,-236.9167549,0.00016517,2]
[365263212,1749569441084,-500.0,0.00016517,2]
[365263214,1749569441093,-244.69163908,0.00016517,2]
[365263217,1749569441106,-255.30836092,0.00016517,2]
[365263219,1749569441117,-500.0,0.00016517,2]
[365263221,1749569441127,-29.30038636,0.00016517,2]
[365263228,1749569441184,-490.0,0.00016438,2]
[365263229,1749569441194,-470.69961364,0.00016517,2]
[365263230,1749569441205,-500.0,0.00016517,2]
[365263231,1749569441215,-130.95038636,0.00016517,2]
[365263232,1749569441227,-369.04961364,0.00016517,2]
[365263233,1749569441239,-500.0,0.00016517,2]
[365263234,1749569441249,-500.0,0.00016517,2]
[365263235,1749569441258,-207.4,0.00016517,2]
[365263236,1749569441268,-2030.296672,0.00016572,2]
[365263237,1749569441278,-490.0,0.00016602,2]
[365263238,1749569441289,-490.0,0.00016602,2]
[365263239,1749569441299,-490.0,0.00016602,2]
[365263240,1749569441309,-490.0,0.00016602,2]
[365263241,1749569441319,-490.0,0.00016602,2]
[365263242,1749569441329,-490.0,0.00016602,2]
[365263243,1749569441339,-490.0,0.00016602,2]
[365263245,1749569441350,-354.39,0.00016602,2]
[365263247,1749569441360,-490.0,0.00016602,2]
[365263249,1749569441370,-490.0,0.00016602,2]
[365263251,1749569441380,-490.0,0.00016602,2]
[365263253,1749569441390,-556.15211381,0.00016602,2]
[365263255,1749569441400,-426.52,0.00016602,2]
[365263257,1749569441410,-490.0,0.00016602,2]
[365263259,1749569441420,-490.0,0.00016602,2]
[365263261,1749569441429,-490.0,0.00016602,2]
[365263263,1749569441439,-490.0,0.00016602,2]
[365263265,1749569441448,-490.0,0.00016602,2]
[365263267,1749569441458,-490.0,0.00016602,2]
[365263269,1749569441468,-490.0,0.00016602,2]
[365263271,1749569441482,-490.0,0.00016602,2]
[365263295,1749569441715,-490.0,0.00016602,2]
[365263298,1749569441736,-490.0,0.00016602,2]
[365263300,1749569441746,-490.0,0.00016602,2]
[365263302,1749569441755,-490.0,0.00016602,2]
[365263304,1749569441765,-490.0,0.00016602,2]
[365263306,1749569441774,-15371.15,0.00016602,2]
[365263308,1749569441783,-490.0,0.00016602,2]
[365263310,1749569441793,-490.0,0.00016602,2]
[365263312,1749569441802,-490.0,0.00016602,2]
[365263314,1749569441815,-490.0,0.00016602,2]
[365263316,1749569441825,-584.73,0.00016602,2]
[365263318,1749569441835,-490.0,0.00016602,2]
[365263320,1749569441845,-490.0,0.00016602,2]
[365263322,1749569441857,-490.0,0.00016602,2]
[365263324,1749569441867,-490.0,0.00016602,2]
[365263326,1749569441877,-490.0,0.00016602,2]
[365263328,1749569441887,-490.0,0.00016602,2]
[365263330,1749569441896,-2955.77,0.00016602,2]
[365263332,1749569441906,-776.91,0.00016602,2]
[365263334,1749569441915,-490.0,0.00016602,2]
[365263337,1749569441925,-490.0,0.00016602,2]
[365263339,1749569441935,-490.0,0.00016602,2]
[365263341,1749569441945,-505.97,0.00016602,2]
[365263343,1749569441955,-490.0,0.00016602,2]
[365263345,1749569441964,-490.0,0.00016602,2]
[365263347,1749569441974,-490.0,0.00016602,2]
[365263349,1749569441985,-490.0,0.00016602,2]
[365263351,1749569441994,-490.0,0.00016602,2]
[365263353,1749569442004,-490.0,0.00016602,2]
[365263355,1749569442014,-490.0,0.00016602,2]
[365263357,1749569442024,-490.0,0.00016602,2]
[365263359,1749569442033,-490.0,0.00016602,2]
[365263361,1749569442043,-490.0,0.00016602,2]
[365263363,1749569442053,-795.69,0.00016602,2]
[365263365,1749569442064,-490.0,0.00016602,2]
[365263367,1749569442077,-490.0,0.00016602,2]
[365263369,1749569442088,-490.0,0.00016602,2]
[365263371,1749569442097,-490.0,0.00016602,2]
[365263373,1749569442107,-490.0,0.00016602,2]
[365263375,1749569442116,-490.0,0.00016602,2]
[365263377,1749569442126,-490.0,0.00016602,2]
[365263379,1749569442136,-490.0,0.00016602,2]
[365263381,1749569442147,-1303.13,0.00016602,2]
[365263384,1749569442157,-1484.38,0.00016602,2]
[365263385,1749569442167,-490.0,0.00016602,2]
[365263388,1749569442176,-716.21,0.00016602,2]
[365263390,1749569442186,-553.48,0.00016602,2]
[365263391,1749569442196,-1826.02,0.00016602,2]
[365263393,1749569442205,-684.73,0.00016602,2]
[365263395,1749569442214,-490.0,0.00016602,2]
[365263397,1749569442224,-594.96,0.00016602,2]
[365263399,1749569442234,-490.0,0.00016602,2]
[365263401,1749569442244,-760.2,0.00016602,2]
[365263404,1749569442254,-490.0,0.00016602,2]
[365263405,1749569442264,-2970.93,0.00016602,2]
[365263408,1749569442274,-490.0,0.00016602,2]
[365263410,1749569442284,-490.0,0.00016602,2]
[365263412,1749569442294,-490.0,0.00016602,2]
[365263414,1749569442305,-490.0,0.00016602,2]
[365263416,1749569442314,-493.74,0.00016602,2]
[365263418,1749569442324,-572.96,0.00016602,2]
[365263420,1749569442334,-490.0,0.00016602,2]
[365263422,1749569442344,-490.0,0.00016602,2]